bitfinex-derivatives/quotes_ETHF0:USTF0_20241102
["timestamp","ask_amount","ask_price","bid_price","bid_amount"]
[1730569669246,1.2013,2486.7,2486.4,3.14405086]
[1730569669447,1.2013,2486.7,2486.6,0.28157]
[1730569669653,4.4091,2486.7,2486.6,0.28157]
[1730569670550,4.4091,2486.7,2486.6,1.73057496]
[1730569672858,1.2013,2486.7,2486.6,1.73057496]
[1730569673058,4.4091,2486.7,2486.6,1.73057496]
[1730569673264,1.2013,2486.7,2486.6,1.73057496]
[1730569673462,4.4091,2486.7,2486.6,1.73057496]
[1730569673963,1.2013,2486.7,2486.6,1.73057496]
[1730569674357,4.4091,2486.7,2486.6,1.73057496]
[1730569680371,6.49337619,2486.7,2486.6,1.73057496]
[1730569682163,4.4091,2486.7,2486.6,1.73057496]
[1730569683071,4.69066,2486.7,2486.6,1.73057496]
[1730569683571,4.4091,2486.7,2486.6,1.73057496]
[1730569685469,6.49337619,2486.7,2486.6,1.73057496]
[1730569686466,3.7874,2486.7,2486.6,1.73057496]
[1730569687471,3.7874,2486.7,2486.6,1.8563479]
[1730569689569,5.82987203,2486.7,2486.6,7.86832257]
[1730569689771,5.30555508,2486.7,2486.6,8.93566349]
[1730569689966,4.36939364,2487.1,2486.6,8.93566349]
[1730569689967,2.09809634,2486.9,2486.8,0.28155]
[1730569690174,5.82987203,2487.1,2487.0,0.28153]
[1730569690372,5.82987203,2487.1,2487.0,2.39760522]
[1730569690675,3.2078,2487.1,2487.0,2.39760522]
[1730569690876,3.2078,2487.1,2487.0,2.96810522]
[1730569691677,3.22717203,2487.3,2487.2,0.28151]
[1730569691879,3.22717203,2487.3,2487.2,1.73051496]
[1730569692373,0.6051,2487.3,2487.2,1.73051496]
[1730569692772,3.22717203,2487.3,2487.2,1.73051496]
[1730569692975,0.6051,2487.3,2487.2,1.73051496]
[1730569693669,2.62207203,2487.5,2487.2,1.44900496]
[1730569693876,6.90883317,2487.6,2487.4,1.44900496]
[1730569694065,6.90883317,2487.6,2487.5,0.28147]
[1730569694472,7.19029317,2487.6,2487.4,1.73048496]
[1730569694682,3.48927,2487.5,2487.4,1.44900496]
[1730569694976,0.2815,2487.3,2487.2,1.44900496]
[1730569695179,6.92148707,2487.3,2487.2,1.44900496]
[1730569695376,4.3023,2487.3,2487.2,1.44900496]
[1730569695579,6.92127744,2487.3,2487.2,1.44900496]
[1730569696170,0.28153,2487.0,2486.9,1.44900496]
[1730569696380,6.10811081,2487.1,2486.9,1.73053496]
[1730569696679,2.61879081,2487.0,2486.8,1.44900496]
[1730569696877,0.28154,2486.9,2486.8,1.44900496]
[1730569704185,0.28156,2486.8,2486.4,0.5861]
[1730569704385,6.44572616,2486.7,2486.4,0.5861]
[1730569704580,6.72729616,2486.7,2486.5,0.28158]
[1730569704779,3.2078,2486.6,2486.5,0.28159]
[1730569705281,3.2078,2486.6,2486.5,1.73059496]
[1730569705483,3.2078,2486.6,2486.5,1.44900496]
[1730569705687,3.2078,2486.6,2486.5,1.73059496]
[1730569706687,3.23792616,2486.7,2486.5,1.44900496]
[1730569706884,3.23792616,2486.7,2486.6,0.28157]
[1730569707484,0.6197,2486.7,2486.6,0.28157]
[1730569707682,3.23792616,2486.7,2486.6,0.28157]
[1730569708680,0.90126,2486.7,2486.5,1.73058496]
[1730569708887,3.51948616,2486.7,2486.5,1.44900496]
[1730569709187,3.8275,2486.7,2486.6,0.28157]
[1730569709387,4.10907,2486.7,2486.5,1.73058496]
[1730569709587,6.72729616,2486.7,2486.5,1.44900496]
[1730569709784,0.28158,2486.6,2486.4,0.86769]
[1730569710489,0.28158,2486.6,2486.4,0.28159]
[1730569710794,0.28161,2486.3,2486.1,0.6124]
[1730569711085,5.82554322,2486.4,2486.3,0.28161]
[1730569711290,6.39424322,2486.4,2486.3,0.28161]
[1730569711482,3.7765,2486.4,2486.3,0.28161]
[1730569712287,3.18644322,2486.4,2486.3,1.73061496]
[1730569713893,3.46804322,2486.4,2486.2,1.44900496]
[1730569714190,6.67584322,2486.4,2486.2,1.73061496]
[1730569714689,2.61774322,2486.3,2485.9,2.03180496]
[1730569714898,2.61643609,2486.2,2486.0,1.44900496]
[1730569715294,2.61643609,2486.3,2486.0,1.44900496]
[1730569715490,2.61643609,2486.3,2486.2,1.73062496]
[1730569716800,10.12824609,2486.3,2486.1,1.73063496]
[1730569716993,2.61643609,2486.3,2486.2,0.28162]
[1730569717397,6.63883609,2486.3,2486.2,0.28162]
[1730569717590,2.61643609,2486.3,2486.2,0.28162]
[1730569717797,3.18513609,2486.4,2486.3,0.28161]
[1730569717988,2.61643609,2486.4,2486.3,0.28161]
[1730569718184,3.48141609,2486.6,2486.4,0.28159]
[1730569718391,3.48141609,2486.6,2486.4,1.73059496]
[1730569718592,3.48141609,2486.6,2486.5,0.28159]
[1730569718893,3.19983609,2486.6,2486.5,0.28159]
[1730569719297,0.5834,2486.6,2486.5,0.28159]
[1730569720003,2.67591061,2486.6,2486.5,0.28159]
[1730569720497,5.88371061,2486.6,2486.3,3.25310496]
[1730569720689,5.88371061,2486.6,2486.3,3.53470496]
[1730569720690,2.37410061,2486.5,2486.3,3.53470496]
[1730569720890,2.37410061,2486.5,2486.4,0.2816]
[1730569721291,5.88371061,2486.6,2486.4,0.2816]
[1730569721601,6.16529061,2486.6,2486.4,0.2816]
[1730569722090,5.88371061,2486.6,2486.5,0.28159]
[1730569722897,5.88371061,2486.6,2486.3,3.25310496]
[1730569723089,5.88371061,2486.6,2486.3,3.53470496]
[1730569723090,0.28159,2486.5,2486.3,3.53470496]
[1730569723294,2.09251061,2486.5,2486.3,3.25310496]
[1730569723491,0.28161,2486.3,2486.1,0.28162]
[1730569723696,3.48941,2486.3,2486.1,0.28162]
[1730569723901,0.5774,2486.2,2486.1,0.28162]
[1730569724501,0.5774,2486.2,2486.0,1.8239]
[1730569724709,0.85902,2486.2,2486.0,2.10553]
[1730569724905,0.85902,2486.2,2486.1,0.28163]
[1730569725203,0.5774,2486.2,2486.1,0.28163]
[1730569725505,0.85902,2486.2,2486.1,0.28163]
[1730569725896,0.85902,2486.2,2486.0,2.10553]
[1730569726096,0.5774,2486.2,2486.0,1.8239]
[1730569726300,0.5774,2486.2,2486.1,0.28163]
[1730569726496,0.5774,2486.2,2486.1,1.73063496]
[1730569729901,0.5774,2486.2,2486.1,1.44900496]
[1730569730201,0.85902,2486.2,2486.1,1.44900496]
[1730569730904,0.5774,2486.2,2486.1,1.44900496]
[1730569731210,0.5774,2486.2,2486.1,1.73063496]
[1730569732209,3.2078,2486.3,2486.1,1.44900496]
[1730569732411,3.2078,2486.3,2486.2,0.28162]
[1730569733000,3.48941,2486.3,2486.2,0.28162]
[1730569733204,3.2078,2486.3,2486.2,0.28162]
[1730569733506,4.32159361,2486.4,2486.2,0.28162]
[1730569734309,4.84551909,2486.4,2486.2,0.28162]
[1730569734611,8.05331909,2486.4,2486.2,0.28162]
[1730569735716,9.22072405,2486.4,2486.0,1.8239]
[1730569735900,2.09143779,2486.2,2486.1,0.28163]
[1730569736107,8.05332909,2486.4,2486.2,0.28162]
[1730569736404,2.61643609,2486.3,2486.2,0.28162]
[1730569737108,8.05331909,2486.4,2486.3,0.28161]
[1730569737311,7.77171909,2486.4,2486.3,0.28161]
[1730569737510,5.155283,2486.4,2486.3,0.28161]
[1730569737717,5.436883,2486.4,2486.2,0.28161]
[1730569737912,2.6151593,2486.3,2486.2,0.28161]
[1730569739512,2.6151593,2486.3,2486.2,0.28162]
[1730569741615,3.953683,2486.4,2486.3,0.28161]
[1730569742125,4.235283,2486.4,2486.3,0.28161]
[1730569742310,6.85385378,2486.4,2486.3,0.28161]
[1730569743218,3.36445378,2486.4,2486.3,0.28161]
[1730569743914,6.57225378,2486.4,2486.3,0.28161]
[1730569745516,3.953683,2486.4,2486.3,0.28161]
[1730569745722,10.87329292,2486.4,2485.6,4.26320156]
[1730569745909,2.09575388,2485.7,2485.5,0.5895]
[1730569746221,0.2817,2485.5,2485.3,4.07312]
[1730569746521,5.30191422,2485.4,2485.3,0.28172]
[1730569747116,5.30191422,2485.4,2485.1,2.03850496]
[1730569747317,5.30191422,2485.4,2485.2,0.28173]
[1730569747318,2.09411422,2485.3,2485.2,0.28173]
[1730569747513,6.75091918,2485.4,2485.1,0.5895]
[1730569747713,0.5857,2485.2,2485.1,0.5895]
[1730569748118,0.5857,2485.2,2485.1,0.28174]
[1730569748317,0.5857,2485.2,2485.0,0.5836]
[1730569748717,2.31644496,2485.2,2485.0,0.5836]
[1730569748918,2.03470496,2485.2,2484.8,0.28177]
[1730569749225,1.44900496,2485.0,2484.7,0.5797]
[1730569749619,1.44900496,2485.0,2484.8,0.28178]
[1730569749817,1.44900496,2485.0,2484.7,0.5797]
[1730569750020,1.44900496,2485.0,2484.8,0.28177]
[1730569750021,1.73076496,2485.0,2484.8,0.28177]
[1730569750228,1.73076496,2485.0,2484.7,0.5797]
[1730569750424,1.73076496,2485.0,2484.8,0.28177]
[1730569750623,1.73076496,2485.0,2484.7,0.5797]
[1730569750624,1.44900496,2485.0,2484.7,0.5797]
[1730569750919,0.5857,2485.2,2484.8,0.28177]
[1730569750920,3.48955,2485.1,2484.8,0.28177]
[1730569751124,3.48955,2485.1,2484.8,0.28178]
[1730569751628,0.28177,2484.9,2484.7,0.5797]
[1730569751830,0.28177,2484.9,2484.7,0.86149]
[1730569752021,0.5786,2484.8,2484.7,0.5797]
[1730569752219,0.86038,2484.8,2484.7,0.5797]
[1730569752420,0.5786,2484.8,2484.7,0.5797]
[1730569753128,0.5786,2484.8,2484.7,0.86149]
[1730569753819,0.5786,2484.8,2484.7,0.5797]
[1730569754019,0.5786,2484.8,2484.7,0.86149]
[1730569754216,0.5786,2484.8,2484.6,0.8561]
[1730569754821,0.5786,2484.8,2484.7,0.28179]
[1730569757126,0.5786,2484.8,2484.6,0.85609]
[1730569757328,2.30938496,2484.8,2484.6,0.5743]
[1730569757631,2.30938496,2484.8,2484.6,0.8561]
[1730569757830,1.73079496,2484.7,2484.5,0.28181]
[1730569758023,1.44900496,2484.7,2484.5,0.28181]
[1730569758326,1.44900496,2484.7,2484.4,0.87632]
[1730569758327,1.73080496,2484.7,2484.4,0.87632]
[1730569758525,1.44900496,2484.7,2484.4,0.5945]
[1730569758725,3.7864,2484.8,2484.3,0.5952]
[1730569758726,1.73081496,2484.5,2484.3,0.5952]
[1730569758922,1.73081496,2484.5,2484.3,0.87703]
[1730569759230,1.44900496,2484.5,2484.4,0.28182]
[1730569759925,1.73079496,2484.7,2484.4,0.28182]
[1730569760127,0.28179,2484.7,2484.3,2.04420496]
[1730569760323,0.28179,2484.7,2484.5,0.28181]
[1730569760931,5.40725354,2484.8,2484.5,0.28181]
[1730569761233,5.68904354,2484.8,2484.5,0.28181]
[1730569761731,5.23540496,2484.8,2484.7,0.28179]
[1730569761927,5.23540496,2484.8,2484.4,0.6088]
[1730569762233,5.23540496,2484.8,2484.6,0.28179]
[1730569762725,5.23540496,2484.8,2484.4,0.6088]
[1730569762923,5.23540496,2484.8,2484.7,0.28179]
[1730569763932,5.23540496,2484.8,2484.6,0.28179]
[1730569765228,5.23540496,2484.8,2484.7,0.5728]
[1730569766627,5.23540496,2484.8,2484.7,0.85459]
[1730569766833,5.23540496,2484.8,2484.7,0.5728]
[1730569767235,5.51718496,2484.8,2484.7,0.5728]
[1730569768233,6.49696665,2484.8,2484.2,0.70461]
[1730569768427,3.2078,2484.5,2484.4,0.28182]
[1730569768823,3.2078,2484.5,2484.1,2.15363496]
[1730569768824,4.18758169,2484.5,2484.1,2.15363496]
[1730569769036,4.69108615,2484.5,2484.0,0.843]
[1730569769225,3.71130446,2484.5,2484.0,0.843]
[1730569769426,0.50350446,2484.4,2484.3,0.28183]
[1730569769727,0.50350446,2484.4,2484.3,1.73083496]
[1730569769924,3.2078,2484.5,2484.3,5.47380496]
[1730569770129,3.2078,2484.5,2484.4,4.30662]
[1730569771436,3.2078,2484.5,2484.4,6.08522]
[1730569772426,3.2078,2484.9,2484.5,0.28181]
[1730569772735,3.2078,2484.6,2484.5,1.73081496]
[1730569772925,3.2078,2484.6,2484.5,1.15465247]
[1730569773330,3.2078,2484.6,2484.5,5.17945247]
[1730569773938,3.2078,2484.6,2484.4,1.7786]
[1730569774129,3.2078,2484.6,2484.5,0.28181]
[1730569774537,3.2078,2484.9,2484.5,0.28181]
[1730569774731,3.2078,2484.9,2484.8,1.73078496]
[1730569774935,3.2078,2484.9,2484.8,0.28178]
[1730569775335,3.2078,2484.9,2484.8,0.85278]
[1730569775932,3.2078,2484.9,2484.8,0.97862303]
[1730569776344,3.2078,2484.9,2484.8,3.87302394]
[1730569776637,1.73073496,2485.2,2485.1,0.28174]
[1730569776638,3.2078,2485.2,2485.1,0.28174]
[1730569776840,6.70172942,2485.2,2485.1,3.17614091]
[1730569778437,6.70172942,2485.2,2485.1,0.28174]
[1730569778638,6.70172942,2485.2,2485.1,3.17598757]
[1730569778936,6.70172942,2485.2,2485.1,2.54681503]
[1730569779133,6.70172942,2485.2,2485.1,3.17600254]
[1730569779339,8.15073438,2485.2,2485.1,3.17600254]
[1730569779938,8.43246438,2485.2,2485.1,3.17600254]
[1730569780330,8.43246438,2485.2,2485.1,2.89426254]
[1730569781339,8.43246438,2485.2,2485.1,3.17600254]
[1730569782650,5.22466438,2485.2,2485.1,3.17600254]
[1730569782945,8.43246438,2485.2,2485.1,3.17600254]
[1730569783142,8.15073438,2485.2,2485.1,3.17600254]
[1730569784239,4.65680496,2485.2,2485.1,3.17600254]
[1730569784640,3.2078,2485.2,2485.1,3.17600254]
[1730569784840,3.2078,2485.2,2485.1,3.30183872]
[1730569785543,3.2078,2485.2,2485.1,0.28174]
[1730569785847,3.2078,2485.2,2485.1,3.92725389]
[1730569786933,1.44900496,2485.3,2485.2,0.28173]
[1730569787151,4.65680496,2485.3,2485.2,3.30172257]
[1730569787746,3.2078,2485.3,2485.2,4.53094389]
[1730569788338,3.2078,2485.3,2485.2,4.10674479]
[1730569789238,6.70172942,2485.3,2485.2,3.77958955]
[1730569789443,3.2078,2485.3,2485.2,4.10673321]
[1730569789845,4.65680496,2485.3,2485.2,4.10673321]
[1730569790243,4.65680496,2485.3,2485.2,4.35838739]
[1730569792546,1.56149591,2485.7,2485.2,9.54966235]
[1730569792749,2.37623437,2486.0,2485.5,2.15323496]
[1730569793054,0.81473846,2486.0,2485.9,0.28165]
[1730569793245,4.30866788,2486.0,2485.9,3.37638895]
[1730569793647,4.13482942,2486.0,2485.9,3.50219134]
[1730569794053,7.34262942,2486.0,2485.9,3.50219134]
[1730569794252,7.34262942,2486.0,2485.9,4.12816032]
[1730569795356,7.34262942,2486.0,2485.9,3.92687649]
[1730569795966,4.13482942,2486.0,2485.9,4.12813389]
[1730569796164,1.2471,2486.2,2485.9,3.22051491]
[1730569796467,1.2471,2486.2,2485.7,0.6428]
[1730569796468,1.2471,2486.2,2486.1,0.28163]
[1730569796664,1.2471,2486.2,2486.1,3.30042746]
[1730569796865,4.74102942,2486.2,2486.1,3.30042746]
[1730569797366,4.74102942,2486.2,2486.1,3.17464424]
[1730569800066,7.94882942,2486.2,2486.1,3.17464424]
[1730569800574,4.4549,2486.2,2486.1,3.17464424]
[1730569801865,3.8595,2486.2,2486.1,3.17464424]
[1730569802270,3.2078,2486.2,2486.1,3.17464424]
[1730569802467,0.6449,2486.3,2486.2,0.28162]
[1730569802672,0.6449,2486.3,2486.2,2.69121523]
[1730569802673,3.49392942,2486.3,2486.2,2.69121523]
[1730569802865,4.12082942,2486.3,2486.2,3.94892612]
[1730569803575,0.6269,2486.3,2486.2,3.82315504]
[1730569803875,3.803,2486.5,2486.4,0.2816]
[1730569804166,7.29692942,2486.5,2486.4,1.91662415]
[1730569805463,7.29692942,2486.5,2486.4,0.2816]
[1730569807867,4.08912942,2486.5,2486.4,0.2816]
[1730569808068,7.29692942,2486.5,2486.4,0.2816]
[1730569809869,6.70172942,2486.5,2486.4,0.2816]
[1730569810473,6.70172942,2486.5,2486.4,0.91042874]
[1730569810667,6.70172942,2486.5,2486.4,0.2816]
[1730569810884,3.49392942,2486.5,2486.4,0.91041578]
[1730569811174,4.4466,2486.8,2486.4,0.62881578]
[1730569811377,3.49392942,2486.8,2486.7,0.28156]
[1730569811677,3.49392942,2486.8,2486.7,0.91030815]
[1730569811876,3.49392942,2486.8,2486.7,1.91626039]
[1730569813180,3.49392942,2486.8,2486.7,2.04200429]
[1730569813380,3.819,2487.1,2486.7,2.04200429]
[1730569813583,3.819,2487.1,2487.0,0.28153]
[1730569813888,3.819,2487.1,2487.0,3.17354524]
[1730569814081,3.2078,2487.1,2487.0,3.17354413]
[1730569814474,3.2078,2487.1,2487.0,2.5447985]
[1730569814677,3.2078,2487.1,2487.0,4.1793542]
[1730569814877,3.2078,2487.1,2487.0,3.17343624]
[1730569815077,3.2078,2487.1,2487.0,3.79657524]
[1730569815380,3.2078,2487.1,2487.0,3.2991661]
[1730569815585,3.2078,2487.1,2487.0,3.9438661]
[1730569815882,3.2078,2487.1,2487.0,4.14502876]
[1730569816386,3.2078,2487.1,2487.0,3.9438661]
[1730569816783,3.2078,2487.1,2487.0,4.1491661]
[1730569817479,3.2078,2487.1,2487.0,4.14905446]
[1730569817676,3.2078,2487.1,2487.0,4.35022259]
[1730569818377,3.8307,2487.4,2487.3,0.2815]
[1730569818577,3.8307,2487.4,2487.3,3.79597184]
[1730569818783,7.32462942,2487.4,2487.3,3.79597184]
[1730569820690,7.32462942,2487.4,2487.3,0.2815]
[1730569821979,7.32462942,2487.4,2486.9,0.6059]
[1730569822185,3.49392942,2487.2,2487.1,0.28151]
[1730569822375,6.70172942,2487.2,2487.1,0.28151]
[1730569822581,7.31432942,2487.2,2487.1,0.28151]
[1730569823286,7.59583942,2487.2,2487.1,0.28151]
[1730569823986,4.10652942,2487.2,2487.1,0.28151]
[1730569824283,7.31432942,2487.2,2487.1,0.28151]
[1730569826193,0.28152,2487.1,2487.0,0.28152]
[1730569826379,0.28154,2487.0,2486.9,0.28154]
[1730569826580,0.28154,2487.0,2486.9,0.91024718]
[1730569826581,0.94254,2487.0,2486.9,0.91024718]
[1730569826781,4.43646942,2487.0,2486.9,0.28154]
[1730569827385,4.15492942,2487.0,2486.9,0.28154]
[1730569827583,4.43645942,2487.0,2486.9,0.28154]
[1730569827986,4.15492942,2487.0,2486.6,0.85]
[1730569828186,4.15492942,2487.0,2486.6,0.28157]
[1730569828187,6.70172942,2486.7,2486.6,0.28157]
[1730569828489,6.98328942,2486.7,2486.6,0.12575364]
[1730569828692,6.98328942,2486.7,2486.6,0.8074744]
[1730569828888,10.12195232,2486.7,2486.6,0.18464947]
[1730569829390,10.12195232,2486.7,2486.6,0.46621947]
[1730569829577,10.12195232,2486.7,2486.6,0.18464947]
[1730569831583,0.28159,2486.5,2486.4,0.28159]
[1730569831786,3.77551942,2486.5,2486.4,0.28159]
[1730569831989,3.77551942,2486.5,2486.3,0.2816]
[1730569832181,6.70172942,2486.4,2486.3,0.2816]
[1730569832381,6.70172942,2486.4,2486.3,0.40738382]
[1730569832577,6.98332942,2486.4,2486.3,0.40738382]
[1730569832778,7.34012942,2486.4,2486.3,0.40738382]
[1730569833390,7.34012942,2486.4,2486.3,0.40738579]
[1730569833589,7.34012942,2486.4,2486.3,0.12578579]
[1730569833793,7.62172942,2486.4,2486.3,0.12578579]
[1730569834091,7.62172942,2486.4,2486.3,0.40739579]
[1730569834384,7.34012942,2486.4,2486.3,0.40739579]
[1730569834887,7.62172942,2486.4,2486.3,0.12578579]
[1730569835192,0.28161,2486.3,2486.1,0.28163]
[1730569835383,3.49392942,2486.2,2486.1,0.28163]
[1730569835584,4.12132942,2486.2,2486.1,0.60868682]
[1730569835891,4.12132942,2486.2,2486.1,0.12579108]
[1730569835892,7.54161232,2486.2,2486.1,0.12579108]
[1730569836793,7.54161232,2486.2,2485.7,0.6487]
[1730569836794,7.25999232,2486.2,2485.7,0.62442744]
[1730569836989,7.25999232,2486.2,2485.7,0.28167]
[1730569836990,6.70172942,2485.8,2485.7,0.28167]
[1730569837187,6.70172942,2485.8,2485.7,1.86683523]
[1730569837391,7.31852942,2485.8,2485.7,1.86683551]
[1730569838083,4.11072942,2485.8,2485.7,1.86683551]
[1730569838286,7.31852942,2485.8,2485.7,1.86683551]
[1730569838693,7.31852942,2485.8,2485.7,1.53973778]
[1730569838891,7.31852942,2485.8,2485.7,1.86683539]
[1730569838892,6.70172942,2485.8,2485.7,1.86683539]
[1730569839089,3.49392942,2485.8,2485.7,4.11796748]
[1730569839286,3.49392942,2485.8,2485.7,4.36955695]
[1730569839287,6.70172942,2485.8,2485.7,4.36955695]
[1730569839592,6.70172942,2485.8,2485.7,3.49278902]
[1730569840887,6.70172942,2485.8,2485.7,4.12178957]
[1730569841202,6.98338942,2485.8,2485.7,3.22061957]
[1730569841492,6.98338942,2485.8,2485.7,3.30100873]
[1730569841884,6.98338942,2485.8,2485.7,2.04294095]
[1730569842084,7.66818942,2485.8,2485.7,2.04294095]
[1730569842288,7.66818942,2485.8,2485.7,0.12580955]
[1730569842487,7.66818942,2485.8,2485.7,1.76133379]
[1730569843185,7.66818942,2485.8,2485.7,2.04301379]
[1730569843594,4.46038942,2485.8,2485.7,1.76133379]
[1730569843790,7.66818942,2485.8,2485.7,1.76133379]
[1730569843993,7.66818942,2485.8,2485.7,0.62904778]
[1730569843994,10.80685232,2485.8,2485.7,0.62904778]
[1730569844190,10.52519232,2485.8,2485.1,5.48971066]
[1730569844491,10.52519232,2485.8,2485.1,5.14633233]
[1730569844492,6.70172942,2485.2,2485.1,5.14633233]
[1730569844695,6.70172942,2485.2,2485.1,8.1663247]
[1730569845292,6.70172942,2485.2,2485.1,6.90799448]
[1730569845591,6.70172942,2485.2,2485.1,8.16625439]
[1730569845797,3.49392942,2485.2,2485.1,6.90799448]
[1730569846192,6.70172942,2485.2,2485.1,6.90798614]
[1730569848296,6.70172942,2485.2,2485.1,6.78216162]
[1730569848600,6.70172942,2485.2,2485.1,5.77549744]
[1730569849291,3.49392942,2485.2,2485.1,6.78211606]
[1730569849492,3.49392942,2485.2,2485.1,6.27877785]
[1730569849692,3.49392942,2485.2,2485.1,5.77545772]
[1730569852498,3.49392942,2485.2,2485.1,1.90092539]
[1730569852700,0.28176,2485.0,2484.9,0.28176]
[1730569852907,3.49392942,2484.8,2484.7,0.28179]
[1730569855605,3.49392942,2484.8,2484.1,0.62374851]
[1730569855805,3.77577942,2484.3,2484.1,0.28185]
[1730569856107,3.77577942,2484.3,2483.8,1.985]
[1730569856108,3.49392942,2484.2,2483.8,1.985]
[1730569856304,3.1386629,2484.4,2484.1,0.28186]
[1730569856500,3.2078,2484.2,2484.1,0.28186]
[1730569856806,6.70172942,2484.2,2484.1,0.28186]
[1730569858006,0.6776,2484.5,2483.8,8.3314629]
[1730569858007,3.2078,2484.5,2483.8,8.3314629]
[1730569858208,3.2078,2484.5,2484.0,0.70467]
[1730569858508,3.2078,2484.5,2484.4,0.28182]
[1730569860416,3.2078,2484.8,2484.7,0.28179]
[1730569860813,6.70172942,2484.8,2484.7,0.28179]
[1730569862412,3.2078,2484.8,2484.7,0.28179]
[1730569864714,3.2078,2484.8,2484.7,0.911062]
[1730569865317,3.2078,2484.8,2484.7,1.9178821]
[1730569865516,3.2078,2484.8,2484.7,1.91788886]
[1730569865815,3.2078,2484.8,2484.7,0.28179]
[1730569866118,3.2078,2484.8,2484.7,0.91106492]
[1730569866318,3.2078,2484.8,2484.7,1.54033891]
[1730569866714,3.2078,2484.8,2484.7,2.54718367]
[1730569867319,3.2078,2484.8,2484.7,2.67303833]
[1730569867924,3.2078,2484.8,2484.7,3.93154291]
[1730569868526,3.2078,2484.8,2484.7,3.50362872]
[1730569868722,3.2078,2484.8,2484.7,3.30226799]
[1730569869419,3.2078,2484.8,2484.7,3.50363163]
[1730569871818,3.2078,2484.8,2484.7,3.75533315]
[1730569872515,3.2078,2484.8,2484.7,4.37786077]
[1730569873129,3.2078,2484.8,2484.7,0.86070982]
[1730569873327,3.2078,2484.8,2484.7,4.37951656]
[1730569873524,3.2078,2484.8,2484.7,3.75530943]
[1730569875024,3.2078,2484.8,2484.7,3.81359566]
[1730569875322,6.70172942,2484.8,2484.7,3.81359566]
[1730569875627,3.2078,2484.8,2484.7,3.81359566]
[1730569876623,3.2078,2484.8,2484.7,0.28179]
[1730569876824,0.6464,2485.0,2484.9,0.28177]
[1730569877028,0.6464,2485.0,2484.9,0.90683776]
[1730569877321,4.14032942,2485.0,2484.9,5.00524913]
[1730569878532,4.14032942,2485.0,2484.9,4.38053402]
[1730569878724,4.14032942,2485.0,2484.9,4.38053202]
[1730569879530,4.14032942,2485.0,2484.9,5.06133202]
[1730569879828,3.49392942,2485.0,2484.9,5.06133202]
[1730569880031,3.2078,2485.2,2485.1,0.28174]
[1730569880328,3.2078,2485.7,2485.0,1.3714]
[1730569880535,3.49392942,2485.4,2485.3,0.28172]
[1730569880831,3.49392942,2485.4,2485.3,3.7512557]
[1730569881036,3.49392942,2485.4,2485.3,4.38040966]
[1730569881428,3.49392942,2485.4,2485.3,3.75464984]
[1730569881638,3.49392942,2485.4,2485.3,4.38040966]
[1730569883435,3.49392942,2485.4,2485.3,3.75464984]
[1730569884145,3.49392942,2485.4,2485.3,3.75436878]
[1730569887642,3.49392942,2485.4,2485.3,0.28172]
[1730569887840,3.49392942,2485.4,2485.3,3.55306739]
[1730569888142,3.49392942,2485.4,2485.3,1.11213895]
[1730569888340,3.49392942,2485.4,2485.3,2.06838132]
[1730569888535,3.49392942,2485.4,2485.3,3.70406192]
[1730569888737,3.49392942,2485.4,2485.3,3.95570176]
[1730569888938,3.49392942,2485.4,2485.3,3.75438808]
[1730569890641,3.2078,2485.5,2485.4,0.28171]
[1730569890841,6.70172942,2485.5,2485.4,4.40217808]
[1730569891241,6.70172942,2485.5,2485.4,0.92951]
[1730569891548,6.70172942,2485.5,2485.4,4.4018921]
[1730569892147,6.70172942,2485.5,2485.4,5.0590921]
[1730569892338,6.70172942,2485.5,2485.4,4.4112921]
[1730569892545,6.70172942,2485.5,2485.4,3.7540921]
[1730569893053,7.32972942,2485.5,2485.4,3.7540921]
[1730569893748,4.12192942,2485.5,2485.4,3.7540921]
[1730569895147,4.12192942,2485.5,2485.4,3.7542806]
[1730569898245,7.32972942,2485.5,2485.4,0.40752094]
[1730569898548,7.32972942,2485.5,2485.4,3.75425189]
[1730569898747,7.32972942,2485.5,2485.4,3.75423617]
[1730569899150,4.12192942,2485.5,2485.4,3.75423617]
[1730569899349,7.32972942,2485.5,2485.4,3.75423617]
[1730569899747,7.32972942,2485.5,2485.4,3.75422314]
[1730569901741,4.12192942,2485.5,2485.4,3.75422314]
[1730569901940,4.12192942,2485.5,2485.4,3.75424757]
[1730569903647,5.85313182,2485.5,2485.4,1.96273862]
[1730569904061,5.85313182,2485.5,2485.4,0.75489947]
[1730569904062,7.42360119,2485.5,2485.4,0.75489947]
[1730569904350,5.85313182,2485.5,2485.4,1.03660947]
[1730569904560,7.5447627,2485.5,2485.4,1.03660947]
[1730569904749,9.63872186,2485.5,2485.4,0.75489947]
[1730569905150,9.35702186,2485.5,2485.3,0.28172]
[1730569905345,4.61363942,2485.4,2485.3,0.28172]
[1730569906747,4.61363942,2485.4,2485.3,0.48305462]
[1730569906945,4.33192942,2485.4,2485.3,0.28172]
[1730569907569,4.61363942,2485.4,2485.3,0.28172]
[1730569907745,6.70759858,2485.4,2485.3,0.28172]
[1730569907947,4.61364942,2485.4,2484.8,1.38992268]
[1730569908152,3.21367916,2485.4,2485.3,0.28172]
[1730569908350,7.21207916,2485.4,2485.3,0.28172]
[1730569908646,8.61204942,2485.4,2485.3,0.48305991]
[1730569908852,9.89923029,2485.4,2485.3,0.28172]
[1730569909053,9.89923029,2485.4,2485.3,1.48975473]
[1730569909262,9.89923029,2485.4,2485.3,1.2883748]
[1730569909557,9.89923029,2485.4,2485.3,1.48970576]
[1730569910964,9.89923029,2485.4,2485.3,1.48970838]
[1730569911454,6.69143029,2485.4,2485.3,1.48970838]
[1730569911753,9.89923029,2485.4,2485.3,1.48970838]
[1730569912559,10.18094029,2485.4,2485.3,1.48970838]
[1730569913159,9.89923029,2485.4,2485.3,1.48970838]
[1730569913347,8.33032942,2485.4,2485.3,1.48970838]
[1730569913546,9.89992801,2485.4,2485.3,1.48970838]
[1730569914460,9.89992801,2485.4,2485.3,1.74137468]
[1730569914760,5.12252942,2485.4,2485.3,1.48970838]
[1730569914964,5.12252942,2485.4,2485.3,1.74137522]
[1730569915160,8.33032942,2485.4,2485.3,1.74137522]
[1730569916152,8.33032942,2485.4,2485.3,1.74137895]
[1730569917259,8.33032942,2485.4,2485.3,2.49083043]
[1730569918460,10.42428858,2485.4,2485.3,2.49083043]
[1730569919058,10.70599858,2485.4,2485.3,2.49083043]
[1730569919755,10.70599858,2485.4,2485.3,1.90367323]
[1730569919950,10.70599858,2485.4,2485.3,3.06135048]
[1730569920150,10.70599858,2485.4,2485.3,4.30898527]